Cogmind - Beta 13 @@@ ROGUE MODE // 2024.04.03 @ 20:50:56 Player: _An Result: Destroyed by D-53 Grenadier with Mini Grenade Launcher Performance ------------- Evolutions (0) 0 Regions Visited (2) 400 Robots Destroyed (27) 135 Value Destroyed (413) 413 Prototype IDs (2) 40 Alien Tech Used (0) 0 Bonus (25) 25 TOTAL SCORE: 1013 Bonus ------- Follower Combat Kills 25 Cogmind --------- Core Integrity 0/250 Matter 300/300 Energy 250/250 System Corruption 0% Temperature Cool (0) Movement Rolling (100) Location -10/Mines Parts ------- > --- POWER (1) -------- Ion Engine > --- PROPULSION (2) --- Compact Wheel > --- UTILITY (2) ------ Small Storage Unit > --- WEAPON (2) ------- (None) > --- INVENTORY (8) ---- Light Nuclear Core Light Treads Light Treads Hover Unit Seismic Detector Seismic Detector Mining Laser Peak State ------------ > --- POWER ------------ Light Ion Engine > --- PROPULSION ------- Compact Wheel Compact Wheel > --- UTILITY ---------- Small Storage Unit Improved Terrain Scanner > --- WEAPON ----------- Medium Laser Small Laser > --- INVENTORY -------- Light Treads Light Treads Seismic Detector Mining Laser [Rating: 9] Favorites ----------- Power Light Ion Engine Engine Light Ion Engine Power Core Light Nuclear Core Propulsion Compact Wheel Treads Light Treads Wheel Compact Wheel Utility Small Storage Unit Device Improved Terrain Scanner Storage Small Storage Unit Protection Light Armor Plating Weapon Small Laser Energy Gun Small Laser Special Weapon Mining Laser Build | -11 -10 -10 ------- Run | Yrd Mat Min Slots Evolved . | . . . Power . | . . . Propulsion . | . . . Utility . | . . . Weapon . | . . . Parts Attached 19 | 11 8 . Power 3 | 1 2 . Engine 2 | 1 1 . Core 1 | . 1 . Reactor . | . . . Propulsion 5 | 4 1 . Treads 2 | 2 . . Leg . | . . . Wheel 3 | 2 1 . Hover . | . . . Flight . | . . . Utility 6 | 4 2 . Device 3 | 2 1 . Storage 2 | 2 . . Processor . | . . . Hackware . | . . . Protection 1 | . 1 . Artifact . | . . . Weapon 5 | 2 3 . Energy Gun 4 | 2 2 . Energy Cannon . | . . . Ballistic Gun . | . . . Ballistic Cannon . | . . . Launcher . | . . . Special Weapon 1 | . 1 . Impact Weapon . | . . . Slashing Weapon . | . . . Piercing Weapon . | . . . Special Melee Weapon . | . . . Unidentified Prototypes . | . . . Parts Lost 9 | . 6 3 Power 2 | . 2 . Propulsion 2 | . 1 1 Utility 2 | . 1 1 Weapon 3 | . 2 1 Highest Loss Streak 5 | . 5 3 To Critical Strikes . | . . . Average Slot Usage (%) 90 | . 89 97 Engine 8 | . 6 14 Core 4 | . 6 . Wheel 21 | . 20 26 Device 5 | . 7 . Storage 14 | . 14 14 Protection 7 | . 5 13 Energy Gun 25 | . 24 26 Special Weapon 2 | . 2 . Naked Turns . | . . . Heaviest Build 17 | 12 17 17 Greatest Support 40 | 40 32 32 Greatest Overweight (x) 1 | . 1 1 Average Overweight (x) . | . . . Largest Inventory Capacity 8 | 8 8 8 Average Capacity 7 | 7 8 8 Most Carried 7 | 5 7 7 Average Carried 4 | 2 4 6 Final Capacity 8 | 8 8 8 Final Carried 7 | 4 6 7 Class Distribution -------------------- 94% | Mutant 5% | Scavenger-Mutant Dominant Class ---------------- Mutant | -10/Materials Mutant | -10/Mines Resources | -11 -10 -10 ----------- Run | Yrd Mat Min Matter Collected 385 | 310 75 . Remotely . | . . . Salvage Created 669 | 223 385 61 Parts 63 | 23 34 6 Haulers Intercepted . | . . . Recyclers Shooed 2 | 1 1 . Parts Field Recycled . | . . . Retrieved Matter . | . . . Parts Self-Destructed . | . . . Prevented . | . . . Kills | -11 -10 -10 ------- Run | Yrd Mat Min Combat Hostiles Destroyed 12 | . 11 1 Guns 11 | . 10 1 Cannons 1 | . 1 . Classes Destroyed 7 | 3 4 . Worker 3 | 2 1 . Tunneler 8 | 5 2 1 Recycler 1 | 1 . . Operator 1 | . 1 . Watcher 2 | . 2 . Swarmer 6 | . 6 . Grunt 6 | . 5 1 Best Kill Streak 7 | 7 4 1 Combat Bots Only 3 | . 3 1 Max Kills in Single Turn 2 | 2 1 1 Gunslinging . | . . . Exploded . | . . . Melee . | . . . Uniques/NPCs Destroyed . | . . . Combat | -11 -10 -10 -------- Run | Yrd Mat Min Hostile Shots Fired 92 | . 81 11 Missed 25 | . 23 2 Damage Taken 936 | . 635 301 Core 273 | . 174 99 Absorbed by Shields . | . . . Core Remaining (%) 100 | 100 . . Volleys Fired 82 | 15 57 10 Largest 2 | 2 2 2 Hottest 165 | 90 165 105 Shots Fired 140 | 30 92 18 Gun 137 | 30 89 18 Cannon . | . . . Launcher . | . . . Special 3 | . 3 . Kinetic . | . . . Thermal 140 | 30 92 18 Explosive . | . . . Electromagnetic . | . . . Robot Hit Streak 7 | 4 7 7 Robot Miss Streak 5 | 3 5 3 Penetration Max . | . . . Secondary Targets 2 | . 2 . Max Gunslinging Chain 1 | . 1 . Shots Hit Robots 79 | 16 52 11 Core Hits 37 | 9 24 4 Critical Kills . | . . . Critical Parts Destroyed . | . . . Critical Strikes 3 | . 3 . Burn 3 | . 3 . Melee Attacks . | . . . Impact . | . . . Slashing . | . . . Piercing . | . . . Sneak Attacks . | . . . Combat Hostiles . | . . . Follow-up Attacks . | . . . Damage Inflicted 1031 | 197 695 139 Guns 1007 | 197 671 139 Cannons . | . . . Explosions . | . . . Melee . | . . . Ramming . | . . . Kinetic . | . . . Thermal 1031 | 197 695 139 Explosive . | . . . Electromagnetic . | . . . Impact . | . . . Slashing . | . . . Piercing . | . . . Highest Corruption . | . . . Average Corruption . | . . . Corruption Purged . | . . . Corruption Blocked . | . . . Overload Shots . | . . . Overflow Damage . | . . . Projectiles . | . . . Explosions . | . . . Melee . | . . . Knockbacks . | . . . Impact . | . . . Kinetic . | . . . Secondary . | . . . Self-Inflicted Damage . | . . . Shots . | . . . Rammed . | . . . Targets Rammed . | . . . Kicked . | . . . Crushed . | . . . Highest Temperature 255 | 90 255 126 Average Temperature 64 | 36 74 49 Received Heat Transfer 258 | . 234 24 Effects 1 | . 1 . Interference 1 | . 1 . Siege Activations . | . . . Robots Corrupted . | . . . Combat Hostiles . | . . . Parts Fried . | . . . Impact Corruptions . | . . . Robots Melted . | . . . Combat Hostiles . | . . . Parts Melted 3 | . 3 . Heat Transferred 2898 | 509 2054 335 Parts Sabotaged . | . . . Parts Stolen . | . . . Parts Stripped . | . . . Power Chain Reactions . | . . . Alert | -11 -10 -10 ------- Run | Yrd Mat Min Peak Influence 225 | 40 225 67 Initial 26 | . 26 25 Average 56 | 16 67 41 Maximum Alert Level 1 | . 1 . Low Security (%) 97 | 100 96 100 Level 1 2 | . 3 . Level 2 . | . . . Level 3 . | . . . Level 4 . | . . . Level 5 . | . . . High Security . | . . . Max Security . | . . . Squads Dispatched 4 | . 4 . Investigation 3 | . 3 . Extermination . | . . . Reinforcement 1 | . 1 . Assault . | . . . Garrison . | . . . Intercept . | . . . Searches Triggered . | . . . Construction Impeded . | . . . Haulers Reinforced . | . . . Active Scanning Responses . | . . . Cargo Convoy Interrupts . | . . . Stealth | -11 -10 -10 --------- Run | Yrd Mat Min Distress Signals 4 | . 3 1 Communications Jammed . | . . . Distress Signals . | . . . Times Spotted 35 | . 24 11 Peak Tracking Total 6 | . 4 6 Tactical Retreats 4 | . 4 . Traps | -11 -10 -10 ------- Run | Yrd Mat Min Traps Triggered 1 | . 1 . Indirectly . | . . . Trap Hack Attempts . | . . . Triggered . | . . . Disarmed . | . . . Reprogrammed . | . . . Reused . | . . . Traps Extracted . | . . . Installed . | . . . Triggered . | . . . Machines | -11 -10 -10 ---------- Run | Yrd Mat Min Machines Disabled 1 | . 1 . Max in Single Turn 1 | . 1 . Machines Repaired . | . . . Machines Dismantled . | . . . Machines Sabotaged . | . . . Overloaded Fab Kills . | . . . Hacking | -11 -10 -10 --------- Run | Yrd Mat Min Machines Accessed 4 | . 4 . Terminals 4 | . 4 . Fabricators . | . . . Repair Stations . | . . . Recycling Units . | . . . Scanalyzers . | . . . Garrison Access . | . . . Total Hacks 14 | . 14 . Successful 8 | . 8 . Failed 6 | . 6 . Catastrophic 1 | . 1 . Database Lockouts . | . . . Manual 13 | . 13 . Terminals 14 | . 14 . Fabricators . | . . . Repair Stations . | . . . Recycling Units . | . . . Scanalyzers . | . . . Garrison Access . | . . . Terminal Hacks 4 | . 4 . Prototype ID Bank 1 | . 1 . Branch Access Points 1 | . 1 . Unreport Threat 2 | . 2 . Fabricator Hacks . | . . . Repair Station Hacks . | . . . Recycling Unit Hacks . | . . . Scanalyzer . | . . . Garrison Access Hacks . | . . . Unauthorized Hacks 4 | . 4 . Terminals 4 | . 4 . Botnet 4 | . 4 . Fabricators . | . . . Repair Stations . | . . . Recycling Units . | . . . Scanalyzers . | . . . Garrison Access . | . . . Data Cores Recovered . | . . . Used . | . . . Hacking Detections 3 | . 3 . Full Trace Events . | . . . Feedback Events . | . . . Feedback Blocked . | . . . Robot Schematics Acquired . | . . . Robots Built . | . . . Authchips . | . . . Time . | . . . Total Robot Build Rating . | . . . Part Schematics Acquired . | . . . Parts Built . | . . . Authchips . | . . . Time . | . . . Total Part Build Rating . | . . . Parts Repaired . | . . . Time . | . . . Parts Recycled . | . . . Recycled Matter . | . . . Retrieved Matter . | . . . Retrieved Components . | . . . Parts Scanalyzed . | . . . Part Schematics Acquired . | . . . Parts Damaged . | . . . Bothacking | -11 -10 -10 ------------ Run | Yrd Mat Min Used RIF Installer . | . . . Robots Hacked . | . . . Non-combat . | . . . Combat . | . . . Robot Hacks Applied . | . . . Relay Couplers Released . | . . . Fabnet Peak Effective % . | . . . Robots Rewired . | . . . Allies Hacked . | . . . Hacks Repelled . | . . . Allies | -11 -10 -10 -------- Run | Yrd Mat Min Total Allies 3 | . . 3 Largest Group 3 | . . 3 Highest-Rated Group 40 | . . 40 Highest-Rated Ally 16 | . . 16 Total Orders . | . . . Ally Attacks 7 | . . 7 Total Damage 84 | . . 84 Kills 1 | . . 1 Allies Corrupted . | . . . Allies Melted . | . . . Intel | -11 -10 -10 ------- Run | Yrd Mat Min Robot Analysis Total . | . . . Derelict Logs Recovered . | . . . Drone Launches . | . . . Drone Recoveries . | . . . Exploration | -11 -10 -10 ------------- Run | Yrd Mat Min Turns Passed 1477 | 191 1047 239 Spaces Moved 1107 | 124 779 204 Core 8 | 8 . . Treads 11 | 11 . . Legs . | . . . Wheels 1088 | 105 779 204 Hover . | . . . Flight . | . . . Fastest Speed 50 | 50 100 100 Average Speed 103 | 102 104 100 Slowest Speed 160 | 160 115 115 Overloaded Moves . | . . . Propulsion Burnouts . | . . . Robots Hopped . | . . . Cave-ins Triggered . | . . . Exploration Rate (%) 44 | 6 82 44 Regions Visited 2 Branch Regions 1 Pre-discovered Areas . | . . . Known Exits Taken 1 | . 1 . Unknown Exits Taken 1 | 1 . . Scrap Searched 1 | . . 1 Spaces Dug . | . . . Terrain Destroyed . | . . . Melee . | . . . Projectile . | . . . AOE . | . . . Terrain Rammed . | . . . Walls Destroyed . | . . . Machines Disabled . | . . . Actions | -11 -10 -10 --------- Run | Yrd Mat Min Total 1290 | 155 915 220 Wait 74 | 1 68 5 Move 1105 | 123 778 204 Hop . | . . . Pick Up 4 | 1 2 1 Fast Attach 16 | 10 6 . Attach 3 | 1 2 . Detach 6 | 4 2 . Swap . | . . . Drop . | . . . Fire 82 | 15 57 10 Melee . | . . . Ram . | . . . Kick . | . . . Crush . | . . . Escape Stasis . | . . . Rewire . | . . . Trap . | . . . Miscellaneous . | . . . Route ------- -11/Scrapyard -10/Materials (discovered 4 exits: [*Mat x2] / *Min / [*Sub]) -10/Mines History --------- Turn | Location | Event 13 | -11/Scrapyard | Discovered new exit (range 15) 192 | -11/Scrapyard | Entered Materials 230 | -10/Materials | Identified exit to Mines 307 | -10/Materials | Build established: Mutant 495 | -10/Materials | Discovered new exit (range 3) 611 | -10/Materials | Core integrity fell below 50% 665 | -10/Materials | Lost 5 parts (1p1n1u2w) 738 | -10/Materials | Discovered new exit (range 6) 767 | -10/Materials | Discovered new exit (range 12) 900 | -10/Materials | Derelicts attacked the area 1239 | -10/Materials | Entered Mines 1241 | -10/Mines | Assisted by bots powering up and referring to "LRC-V3" 1429 | -10/Mines | Assembled infested the area 1463 | -10/Mines | Core integrity fell below 20% 1478 | -10/Mines | Destroyed by D-53 Grenadier with Mini Grenade Launcher Last Messages --------------- Found Med. Matter Pod. Found 36 Matter. T-07 Excavator destroyed. G-47 Trooper destroyed. Acquired Lgt. Nuclear Core. Mercenary 1a destroyed. G-34 Mercenary destroyed. ALERT: Infestation in the mines, dispatching Demolisher response squad. T-07 Excavator destroyed. as-48745 sneak attacks. Trooper 1b destroyed. as-48745 destroyed. as-26941 destroyed. Com. Wheel destroyed. Particle Gun severed. Lgt. Armor Plating destroyed. as-75064 destroyed. U-05 Engineer lays Concrete. Sml. Laser destroyed. Map ----- +----------------------------------------------------+ | ????????????????????????????? | | ????????????????????????????? | | ????????????????????????????? | | ????????????????????????????? | | ????????????????????????????? | | ????????????????????????????? | | ????????????????????????????? | | ????????????????????????????? | | ????????????????????????????? | | ????????????????????????????? | | ???????????????????????? ??? | | ???????????????????????? ??? | | ???????????????????????? ??? | | ???????????????????????# ??? | | ???????????????????????# ??? | | ???????????###?????????# #?? | | ??????????? #???####??# #?? | | ???????????# #???? ### #?? | | #????????### #????? # #?? | | #???????## ##????? #?? | | ??????## #?????? ##? | | #?????## ##?????# #? | | #?????# ####### #? | | #?????# ## #? | | ####### k #? | | ## @ #? | | # ## u d """ #? | | #[# ## """ #? | | # #### """ #? | | %% #####??## ##? | | = #???????## ###?? | | ###????????#####???? | | ### #??????????????????? | | #?## ###??????????????????? | | # #??# #????????????????????? | | # #??# #????????????????????? | | # #??# #????????????????????? | | # #??# #????????????????????? | | # #??# #????????????????????? | | # ?? ????????????????????? | | ## ??###????????????????????? | | ?? ?????????????????????????? | | ?? ?????????????????????????? | | ??#?????????????????????????? | | #??????????????????????????? | | #??????????????????????????? | | ##??????????????????????????? | | ????????????????????????????? | | ????????????????????????????? | | ????????????????????????????? | +----------------------------------------------------+ Best States ------------- Heat Dissipation 25 Energy Generation 14 Energy Capacity 250 Matter Stores 300 Matter Capacity 300 Sight Range 16 Terrain Scan Range 16 Terrain Scan Density 10 Armor Coverage 150 Evasion (%) 40 Recoil Reduction 2 Item Schematics ----------------- None Robot Schematics ------------------ None Fabricated ------------ Nothing Alien Tech Used ----------------- None Achievements -------------- None Challenges ------------ None Game ------ Seed BackupRegenerativeCleaver Manual? 0 Play Time 00:11:19 Cumulative 6.4 hours Start 2024.04.03 @ 20:41:06 End 2024.04.03 @ 20:50:56 Sessions 1 Manual Loads 0 Difficulty Rogue Special Mode None Game No. 13 Rogue 13 Adventurer 0 Explorer 0 Win Type - Total 0 Types 0/0/0/0/0/0/0/0/0 Lore% 6 Gallery% 15 Achievement% 14 Wizard Run 0 Options --------- Layout 1 ASCII 0 Keyboard 1 Movement Numpad Keybinds 0 Fullscreen 1 Font 32/SmallcapsGlow Map View 50x35 Zoom Use 0% Tactical HUD 0 Map Filters NONE Filters NONE Steam 1 RUN: 8fa6e3dd-aa47-413c-8f12-545f52021069